fUSD/lending_fUSD_20250505
["ID","MTS","AMOUNT","RATE_DAILY","PERIOD"]
[359967197,1746454238171,-458.421,0.00019746,2]
[359967198,1746454238181,-561.25208399,0.00019747,2]
[359967199,1746454238191,-188.16051126,0.00019747,2]
[359967200,1746454238200,-4006.0528,0.00019747,2]
[359967201,1746454238209,-1153.4229,0.00019747,2]
[359967202,1746454238219,-255.0,0.00019751,2]
[359967203,1746454238228,-1102.70344988,0.00019764,2]
[359967204,1746454238299,-2052.79996108,0.00019764,2]
[359967205,1746454238309,-168.96811702,0.00019764,2]
[359967206,1746454238319,-207.4,0.00019771,2]
[359967207,1746454238329,-500.0,0.00019773,2]
[359967208,1746454238339,-501.29466975,0.00019773,2]
[359967209,1746454238348,-291.86484364,0.00019773,2]
[359967211,1746454238358,-500.0,0.00019773,2]
[359967213,1746454238367,-527.4996018,0.00019773,2]
[359967214,1746454238376,-301.31890799,0.00019773,2]
[359967411,1746454240217,-198.68109201,0.00019773,2]
[359967413,1746454240226,-98.14262562,0.00019773,2]
[359967414,1746454240237,-401.85737438,0.00019773,2]
[359967415,1746454240247,-500.0,0.00019773,2]
[359967416,1746454240256,-313.12538799,0.00019773,2]
[359967417,1746454240266,-186.87461201,0.00019773,2]
[359967418,1746454240275,-879.64538775,0.00019777,2]
[359967419,1746454240287,-2275.85802315,0.00019777,2]
[359967420,1746454240296,-561.25208395,0.00019778,2]
[359967421,1746454240305,-970.0,0.00019782,2]
[359967422,1746454240315,-500.0,0.00019782,2]
[359967423,1746454240324,-500.0,0.00019782,2]
[359967424,1746454240333,-500.0,0.00019782,2]
[359967426,1746454240343,-500.0,0.00019782,2]
[359967428,1746454240352,-500.0,0.00019782,2]
[359967429,1746454240362,-500.0,0.00019782,2]
[359967432,1746454240371,-500.0,0.00019782,2]
[359967433,1746454240381,-500.0,0.00019782,2]
[359967435,1746454240390,-500.0,0.00019782,2]
[359967437,1746454240400,-500.0,0.00019782,2]
[359967440,1746454240409,-500.0,0.00019782,2]
[359967442,1746454240418,-500.0,0.00019782,2]
[359967443,1746454240427,-500.0,0.00019782,2]
[359967445,1746454240437,-500.0,0.00019782,2]
[359967447,1746454240452,-500.0,0.00019782,2]
[359967450,1746454240462,-500.0,0.00019782,2]
[359967451,1746454240472,-500.0,0.00019782,2]
[359967453,1746454240481,-500.0,0.00019782,2]
[359967455,1746454240491,-500.0,0.00019782,2]
[359967458,1746454240501,-500.0,0.00019782,2]
[359967459,1746454240512,-500.0,0.00019782,2]
[359967461,1746454240522,-500.0,0.00019782,2]
[359967463,1746454240533,-500.0,0.00019782,2]
[359967465,1746454240543,-500.0,0.00019782,2]
[359967467,1746454240554,-367.21935882,0.00019782,2]
[359967469,1746454240564,-500.0,0.00019782,2]
[359967471,1746454240574,-500.0,0.00019782,2]
[359967473,1746454240587,-500.0,0.00019782,2]
[359967475,1746454240600,-500.0,0.00019782,2]
[359967477,1746454240610,-500.0,0.00019782,2]
[359967479,1746454240621,-500.0,0.00019782,2]
[359967482,1746454240631,-500.0,0.00019782,2]
[359967484,1746454240641,-500.0,0.00019782,2]
[359967486,1746454240651,-500.0,0.00019782,2]
[359967488,1746454240661,-500.0,0.00019782,2]
[359967490,1746454240671,-500.0,0.00019782,2]
[359967492,1746454240682,-500.0,0.00019782,2]
[359967494,1746454240696,-500.0,0.00019782,2]
[359967496,1746454240706,-500.0,0.00019782,2]
[359967498,1746454240715,-500.0,0.00019782,2]
[359967500,1746454240725,-585.03216462,0.00019782,2]
[359967502,1746454240734,-585.03216462,0.00019782,2]
[359967504,1746454240743,-585.03216462,0.00019782,2]
[359967506,1746454240752,-585.03216462,0.00019782,2]
[359967507,1746454240762,-585.03216462,0.00019782,2]
[359967510,1746454240772,-585.03216462,0.00019782,2]
[359967512,1746454240782,-585.03216462,0.00019782,2]
[359967514,1746454240792,-585.03216462,0.00019782,2]
[359967516,1746454240802,-585.03216462,0.00019782,2]
[359967518,1746454240811,-585.03216462,0.00019782,2]
[359967520,1746454240820,-585.03216462,0.00019782,2]
[359967521,1746454240829,-585.03216462,0.00019782,2]
[359967523,1746454240839,-585.03216462,0.00019782,2]
[359967525,1746454240848,-585.03216462,0.00019782,2]
[359967543,1746454241013,-585.03216462,0.00019782,2]
[359967545,1746454241024,-585.03216462,0.00019782,2]
[359967547,1746454241034,-585.03216462,0.00019782,2]
[359967549,1746454241044,-585.03216462,0.00019782,2]
[359967551,1746454241053,-585.03216462,0.00019782,2]
[359967553,1746454241062,-585.03216462,0.00019782,2]
[359967555,1746454241071,-585.03216462,0.00019782,2]
[359967557,1746454241081,-585.03216462,0.00019782,2]
[359967559,1746454241090,-585.03216462,0.00019782,2]
[359967561,1746454241099,-585.03216462,0.00019782,2]
[359967563,1746454241109,-112.11651848,0.00019782,2]
[359967566,1746454241121,-472.91564614,0.00019782,2]
[359967567,1746454241131,-267.40763303,0.00019782,2]
[359967570,1746454241142,-317.62453159,0.00019782,2]
[359967572,1746454241152,-585.03216462,0.00019782,2]
[359967574,1746454241162,-585.03216462,0.00019782,2]
[359967576,1746454241171,-585.03216462,0.00019782,2]
[359967578,1746454241181,-585.03216462,0.00019782,2]
[359967580,1746454241193,-585.03216462,0.00019782,2]
[359967582,1746454241203,-585.03216462,0.00019782,2]
[359967584,1746454241212,-575.22316401,0.00019782,2]
[359967586,1746454241221,-7429.8344866,0.00019783,2]
[359967588,1746454241233,-2333.7655134,0.00019783,2]
[359967590,1746454241242,-19999.99,0.00019783,2]
[359967592,1746454241251,-11632.62448668,0.00019783,2]
[359967596,1746454241278,-8581.27700069,0.00019783,2]
[359967600,1746454241311,-831.203988,0.00019783,2]
[359967788,1746454243114,-1419.63,0.00019783,2]
[359967797,1746454243171,-6602.05,0.00019783,2]
[359967804,1746454243230,-933.20452463,0.00019783,2]
[359967806,1746454243240,-151.0,0.00019785,2]
[359967808,1746454243249,-668.65185757,0.00019785,2]
[359967810,1746454243259,-151.0,0.00019785,2]
[359967812,1746454243268,-174.8107938,0.00019786,2]
[359967814,1746454243278,-968.33282391,0.00019789,2]
[359967816,1746454243289,-701.66775255,0.00019789,2]
[359967818,1746454243300,-289.55208868,0.00019789,2]
[359967857,1746454243668,-40.44733486,0.00019789,2]
[359967859,1746454243679,-200.0,0.00019789,2]
[359967861,1746454243688,-275.65434831,0.00019789,2]
[359968120,1746454246264,-758.2613466,0.00019789,2]
[359968122,1746454246275,-2121.58771599,0.00019789,2]
[359968124,1746454246286,-174.81079379,0.00019791,2]
[359968126,1746454246296,-805.6197,0.00019795,2]
[359968128,1746454246306,-500.0,0.00019796,2]
[359968130,1746454246315,-425.7787,0.00019796,2]
[359968132,1746454246325,-174.81079379,0.00019796,2]
[359968134,1746454246334,-200.0,0.00019796,2]
[359968136,1746454246343,-24083.7389,0.00019797,2]
[359968138,1746454246353,-168.96811701,0.00019798,2]
[359968140,1746454246362,-446.5301062,0.00019799,2]
[359968141,1746454246372,-3155.5034109,0.00019802,2]
[359968143,1746454246381,-561.25208395,0.00019808,2]
[359968145,1746454246390,-3155.5034109,0.00019815,2]
[359968147,1746454246399,-3155.5034109,0.00019827,2]
[359968149,1746454246409,-168.96811701,0.00019832,2]
[359968151,1746454246418,-898.814,0.00019834,2]
[359968153,1746454246427,-1114.99,0.00019836,2]
[359968155,1746454246437,-561.25208395,0.00019839,2]
[359968157,1746454246447,-3155.5034109,0.0001984,2]
[359968159,1746454246456,-240.90511751,0.00019845,2]
[359968161,1746454246466,-450.0,0.00019845,2]
[359968163,1746454246475,-450.0,0.00019845,2]
[359968165,1746454246484,-450.0,0.00019845,2]
[359968167,1746454246493,-450.0,0.00019845,2]
[359968169,1746454246502,-450.0,0.00019845,2]
[359968171,1746454246511,-450.0,0.00019845,2]
[359968173,1746454246521,-450.0,0.00019845,2]
[359968175,1746454246531,-187.27661141,0.00019845,2]
[359968177,1746454246540,-450.0,0.00019845,2]
[359968179,1746454246549,-450.0,0.00019845,2]
[359968181,1746454246559,-450.0,0.00019845,2]
[359968183,1746454246568,-319.8721596,0.00019846,2]
[359968185,1746454246577,-450.0,0.00019846,2]
[359968187,1746454246586,-450.0,0.00019846,2]
[359968189,1746454246600,-450.0,0.00019846,2]
[359968191,1746454246609,-450.0,0.00019846,2]
[359968193,1746454246620,-450.0,0.00019846,2]
[359968195,1746454246629,-450.0,0.00019846,2]
[359968197,1746454246639,-450.0,0.00019846,2]
[359968200,1746454246648,-450.0,0.00019846,2]
[359968201,1746454246657,-450.0,0.00019846,2]
[359968203,1746454246668,-450.0,0.00019846,2]
[359968205,1746454246678,-450.0,0.00019846,2]
[359968207,1746454246687,-450.0,0.00019846,2]
[359968209,1746454246697,-450.0,0.00019846,2]
[359968211,1746454246706,-450.0,0.00019846,2]
[359968213,1746454246716,-450.0,0.00019846,2]
[359968215,1746454246726,-450.0,0.00019846,2]
[359968217,1746454246735,-450.0,0.00019846,2]
[359968219,1746454246745,-450.0,0.00019846,2]
[359968221,1746454246754,-450.0,0.00019846,2]
[359968223,1746454246764,-450.0,0.00019846,2]
[359968225,1746454246774,-450.0,0.00019846,2]
[359968228,1746454246783,-450.0,0.00019846,2]
[359968229,1746454246793,-450.0,0.00019846,2]
[359968231,1746454246802,-450.0,0.00019846,2]
[359968233,1746454246811,-450.0,0.00019846,2]
[359968235,1746454246820,-450.0,0.00019846,2]
[359968237,1746454246830,-839.28,0.00019846,2]
[359968239,1746454246839,-3166.23,0.00019846,2]
[359968241,1746454246848,-785.61372,0.00019846,2]
[359968243,1746454246858,-450.0,0.00019846,2]
[359968245,1746454246867,-450.0,0.00019846,2]
[359968247,1746454246876,-450.0,0.00019846,2]
[359968249,1746454246886,-450.0,0.00019846,2]
[359968251,1746454246895,-14417.463714,0.00019846,2]
[359968267,1746454247036,-450.0,0.00019846,2]
[359968269,1746454247045,-660.605369,0.00019846,2]
[359968271,1746454247054,-450.0,0.00019846,2]
[359968274,1746454247065,-450.0,0.00019846,2]
[359968276,1746454247074,-30428.8965,0.00019846,2]
[359968277,1746454247083,-381.7058,0.00019847,2]
[359968279,1746454247092,-36263.9798,0.00019847,2]
[359968281,1746454247101,-1000.0,0.00019847,2]
[359968284,1746454247111,-3155.5034109,0.00019853,2]
[359968285,1746454247120,-319.87215957,0.00019855,2]
[359968288,1746454247129,-450.0,0.00019855,2]
[359968290,1746454247139,-12500.0,0.00019856,2]
[359968292,1746454247148,-240.90511748,0.00019859,2]
[359968294,1746454247157,-450.0,0.00019863,2]
[359968296,1746454247166,-450.0,0.00019863,2]
[359968298,1746454247176,-569.98038403,0.00019863,2]
[359968299,1746454247184,-399.68538124,0.00019863,2]
[359968302,1746454247194,-536.16388088,0.00019863,2]
[359968304,1746454247203,-456.68072204,0.00019863,2]
[359968306,1746454247213,-450.0,0.00019863,2]
[359968308,1746454247222,-450.0,0.00019863,2]
[359968310,1746454247231,-450.0,0.00019863,2]
[359968312,1746454247241,-450.0,0.00019863,2]
[359968314,1746454247251,-450.0,0.00019863,2]
[359968316,1746454247260,-450.0,0.00019863,2]
[359968318,1746454247269,-500.0,0.00019863,2]
[359968319,1746454247279,-450.0,0.00019863,2]
[359968321,1746454247289,-672.64,0.00019863,2]
[359968323,1746454247298,-585.96,0.00019863,2]
[359968325,1746454247307,-450.0,0.00019863,2]
[359968327,1746454247317,-450.0,0.00019863,2]
[359968328,1746454247326,-582.6,0.00019863,2]
[359968329,1746454247336,-450.0,0.00019863,2]
[359968330,1746454247345,-595.85,0.00019863,2]
[359968331,1746454247356,-450.0,0.00019863,2]
[359968332,1746454247365,-465.19,0.00019863,2]
[359968333,1746454247374,-696.31,0.00019863,2]
[359968334,1746454247383,-450.0,0.00019863,2]
[359968335,1746454247393,-450.0,0.00019863,2]
[359968337,1746454247402,-450.0,0.00019863,2]
[359968338,1746454247412,-450.0,0.00019863,2]
[359968340,1746454247422,-182.50907594,0.00019863,2]
[359968343,1746454247431,-229.03186517,0.00019863,2]
[359968345,1746454247441,-500.0,0.00019863,2]
[359968346,1746454247451,-500.0,0.00019863,2]
[359968348,1746454247460,-500.0,0.00019863,2]
[359968350,1746454247469,-500.0,0.00019863,2]
[359968353,1746454247478,-500.0,0.00019863,2]
[359968354,1746454247488,-500.0,0.00019863,2]
[359968356,1746454247498,-500.0,0.00019863,2]
[359968359,1746454247507,-500.0,0.00019863,2]
[359968361,1746454247516,-400.57892794,0.00019863,2]
[359968363,1746454247526,-160.32230561,0.00019863,2]
[359968365,1746454247535,-300.0,0.00019863,2]
[359968367,1746454247544,-319.87215957,0.00019864,2]
[359968369,1746454247553,-450.0,0.00019864,2]
[359968371,1746454247562,-450.0,0.00019864,2]
[359968373,1746454247572,-450.0,0.00019864,2]
[359968375,1746454247582,-450.0,0.00019864,2]
[359968377,1746454247594,-450.0,0.00019864,2]
[359968379,1746454247603,-450.0,0.00019864,2]
[359968381,1746454247613,-450.0,0.00019864,2]
[359968383,1746454247622,-450.0,0.00019864,2]
[359968385,1746454247631,-450.0,0.00019864,2]
[359968387,1746454247641,-450.0,0.00019864,2]
[359968389,1746454247650,-450.0,0.00019864,2]
[359968391,1746454247660,-450.0,0.00019864,2]
[359968393,1746454247670,-450.0,0.00019864,2]
[359968395,1746454247680,-450.0,0.00019864,2]
[359968397,1746454247689,-450.0,0.00019864,2]
[359968399,1746454247699,-450.0,0.00019864,2]
[359968401,1746454247709,-450.0,0.00019864,2]
[359968403,1746454247718,-450.0,0.00019864,2]
[359968405,1746454247730,-450.0,0.00019864,2]
[359968407,1746454247740,-450.0,0.00019864,2]
[359968409,1746454247750,-450.0,0.00019864,2]
[359968410,1746454247759,-450.0,0.00019864,2]
[359968413,1746454247768,-450.0,0.00019864,2]
[359968414,1746454247777,-450.0,0.00019864,2]
[359968416,1746454247787,-450.0,0.00019864,2]
[359968418,1746454247797,-450.0,0.00019864,2]
[359968421,1746454247807,-450.0,0.00019864,2]
[359968423,1746454247816,-450.0,0.00019864,2]
[359968424,1746454247825,-450.0,0.00019864,2]
[359968426,1746454247835,-450.0,0.00019864,2]
[359968428,1746454247844,-450.0,0.00019864,2]
[359968430,1746454247853,-220.86863513,0.00019864,2]
[359968432,1746454247863,-450.0,0.00019864,2]
[359968435,1746454247872,-450.0,0.00019864,2]
[359968437,1746454247882,-450.0,0.00019864,2]
[359968439,1746454247891,-568.69340176,0.00019864,2]
[359968440,1746454247900,-368.92898897,0.00019864,2]
[359968442,1746454247909,-450.0,0.00019864,2]
[359968444,1746454247919,-472.29060828,0.00019864,2]
[359968446,1746454247928,-500.99803008,0.00019864,2]
[359968448,1746454247937,-450.0,0.00019864,2]
[359968450,1746454247947,-450.0,0.00019864,2]
[359968452,1746454247956,-450.0,0.00019864,2]
[359968454,1746454247966,-450.0,0.00019864,2]
[359968456,1746454247975,-450.0,0.00019864,2]
[359968458,1746454247984,-450.0,0.00019864,2]
[359968460,1746454247993,-450.0,0.00019864,2]
[359968462,1746454248002,-450.0,0.00019864,2]
[359968464,1746454248012,-250.0,0.00019864,2]
[359968466,1746454248023,-467.45185861,0.00019864,2]
[359968468,1746454248033,-571.8527472,0.00019864,2]
[359968470,1746454248043,-450.0,0.00019864,2]
[359968472,1746454248052,-450.0,0.00019864,2]
[359968474,1746454248061,-450.0,0.00019864,2]
[359968476,1746454248071,-450.0,0.00019864,2]
[359968478,1746454248080,-450.0,0.00019864,2]
[359968480,1746454248090,-450.0,0.00019864,2]
[359968482,1746454248099,-450.0,0.00019864,2]
[359968484,1746454248109,-554.29742246,0.00019864,2]
[359968486,1746454248118,-450.0,0.00019864,2]
[359968488,1746454248128,-450.0,0.00019864,2]
[359968490,1746454248137,-450.0,0.00019864,2]
[359968492,1746454248147,-450.0,0.00019864,2]
[359968494,1746454248156,-450.0,0.00019864,2]
[359968496,1746454248165,-490.06,0.00019864,2]
[359968498,1746454248175,-450.0,0.00019864,2]
[359968500,1746454248184,-540.50678775,0.00019864,2]
[359968502,1746454248194,-587.66660892,0.00019864,2]
[359968504,1746454248203,-450.0,0.00019864,2]
[359968506,1746454248212,-450.0,0.00019864,2]
[359968508,1746454248222,-499.64154385,0.00019864,2]
[359968510,1746454248232,-450.0,0.00019864,2]
[359968512,1746454248242,-450.0,0.00019864,2]
[359968514,1746454248251,-450.0,0.00019864,2]
[359968516,1746454248261,-450.0,0.00019864,2]
[359968518,1746454248270,-450.0,0.00019864,2]
[359968520,1746454248280,-450.0,0.00019864,2]
[359968522,1746454248289,-450.0,0.00019864,2]
[359968524,1746454248299,-450.0,0.00019864,2]
[359968526,1746454248308,-450.0,0.00019864,2]
[359968528,1746454248318,-450.0,0.00019864,2]
[359968530,1746454248327,-450.0,0.00019864,2]
[359968532,1746454248336,-495.55925297,0.00019864,2]
[359968534,1746454248346,-450.0,0.00019864,2]
[359968536,1746454248355,-450.0,0.00019864,2]
[359968538,1746454248365,-450.0,0.00019864,2]
[359968540,1746454248374,-450.0,0.00019864,2]
[359968542,1746454248386,-450.0,0.00019864,2]
[359968544,1746454248395,-450.0,0.00019864,2]
[359968546,1746454248404,-450.0,0.00019864,2]
[359968548,1746454248413,-450.0,0.00019864,2]
[359968550,1746454248423,-450.0,0.00019864,2]
[359968552,1746454248432,-450.0,0.00019864,2]
[359968554,1746454248441,-450.0,0.00019864,2]
[359968555,1746454248451,-450.0,0.00019864,2]
[359968557,1746454248461,-450.0,0.00019864,2]
[359968559,1746454248470,-450.0,0.00019864,2]
[359968561,1746454248479,-450.0,0.00019864,2]
[359968563,1746454248488,-450.0,0.00019864,2]
[359968565,1746454248498,-450.0,0.00019864,2]
[359968567,1746454248507,-450.0,0.00019864,2]
[359968569,1746454248517,-245.51823283,0.00019864,2]
[359968571,1746454248527,-450.0,0.00019864,2]
[359968573,1746454248536,-450.0,0.00019864,2]
[359968576,1746454248546,-450.0,0.00019864,2]
[359968578,1746454248555,-450.0,0.00019864,2]
[359968580,1746454248565,-450.0,0.00019864,2]
[359968581,1746454248575,-450.0,0.00019864,2]
[359968583,1746454248585,-450.0,0.00019864,2]
[359968585,1746454248600,-450.0,0.00019864,2]
[359968587,1746454248609,-450.0,0.00019864,2]
[359968589,1746454248619,-450.0,0.00019864,2]
[359968592,1746454248628,-450.0,0.00019864,2]
[359968593,1746454248637,-450.0,0.00019864,2]
[359968595,1746454248647,-588.70547733,0.00019864,2]
[359968598,1746454248656,-450.0,0.00019864,2]
[359968599,1746454248666,-450.0,0.00019864,2]
[359968601,1746454248676,-450.0,0.00019864,2]
[359968603,1746454248685,-450.0,0.00019864,2]
[359968605,1746454248694,-450.0,0.00019864,2]
[359968607,1746454248704,-450.0,0.00019864,2]
[359968609,1746454248713,-450.0,0.00019864,2]
[359968611,1746454248722,-450.0,0.00019864,2]
[359968613,1746454248731,-450.0,0.00019864,2]
[359968615,1746454248741,-450.0,0.00019864,2]
[359968617,1746454248750,-450.0,0.00019864,2]
[359968618,1746454248759,-335.81864551,0.00019864,2]
[359968619,1746454248769,-450.0,0.00019864,2]
[359968620,1746454248778,-450.0,0.00019864,2]
[359968621,1746454248787,-450.0,0.00019864,2]
[359968622,1746454248797,-551.6356764,0.00019864,2]
[359968623,1746454248806,-450.0,0.00019864,2]
[359968624,1746454248816,-316.71372366,0.00019864,2]
[359968625,1746454248825,-450.0,0.00019864,2]
[359968626,1746454248834,-510.53741987,0.00019864,2]
[359968628,1746454248844,-450.0,0.00019864,2]
[359968630,1746454248853,-450.0,0.00019864,2]
[359968632,1746454248863,-500.99771152,0.00019864,2]
[359968634,1746454248872,-450.0,0.00019864,2]
[359968636,1746454248882,-450.0,0.00019864,2]
[359968638,1746454248891,-450.0,0.00019864,2]
[359968640,1746454248900,-450.0,0.00019864,2]
[359968642,1746454248909,-583.1868487,0.00019864,2]
[359968644,1746454248919,-450.0,0.00019864,2]
[359968646,1746454248928,-450.0,0.00019864,2]
[359968648,1746454248938,-450.0,0.00019864,2]
[359968650,1746454248950,-450.0,0.00019864,2]
[359968652,1746454248960,-450.0,0.00019864,2]
[359968654,1746454248970,-450.0,0.00019864,2]
[359968656,1746454248979,-450.0,0.00019864,2]
[359968658,1746454248990,-450.0,0.00019864,2]
[359968660,1746454249000,-450.0,0.00019864,2]
[359968662,1746454249009,-450.0,0.00019864,2]
[359968664,1746454249018,-450.0,0.00019864,2]
[359968666,1746454249028,-450.0,0.00019864,2]
[359968668,1746454249038,-450.0,0.00019864,2]
[359968670,1746454249048,-450.0,0.00019864,2]
[359968672,1746454249058,-450.0,0.00019864,2]
[359968674,1746454249068,-450.0,0.00019864,2]
[359968676,1746454249077,-450.0,0.00019864,2]
[359968678,1746454249086,-494.68563965,0.00019864,2]
[359968680,1746454249095,-450.0,0.00019864,2]
[359968682,1746454249105,-500.0,0.00019864,2]
[359968697,1746454249236,-557.30756187,0.00019864,2]
[359968699,1746454249246,-450.0,0.00019864,2]
[359968701,1746454249255,-450.0,0.00019864,2]
[359968703,1746454249264,-450.0,0.00019864,2]
[359968705,1746454249275,-450.0,0.00019864,2]
[359968707,1746454249285,-450.0,0.00019864,2]
[359968708,1746454249294,-240.39197207,0.00019864,2]
[359968710,1746454249304,-450.0,0.00019864,2]
[359968712,1746454249314,-450.0,0.00019864,2]
[359968715,1746454249323,-450.0,0.00019864,2]
[359968716,1746454249333,-450.0,0.00019864,2]
[359968718,1746454249343,-450.0,0.00019864,2]
[359968720,1746454249353,-450.0,0.00019864,2]
[359968722,1746454249363,-450.0,0.00019864,2]
[359968724,1746454249373,-450.0,0.00019864,2]
[359968726,1746454249382,-450.0,0.00019864,2]
[359968728,1746454249392,-450.0,0.00019864,2]
[359968730,1746454249402,-450.0,0.00019864,2]
[359968732,1746454249412,-450.0,0.00019864,2]
[359968734,1746454249422,-496.47963949,0.00019864,2]
[359968736,1746454249432,-500.85043844,0.00019864,2]
[359968738,1746454249443,-450.0,0.00019864,2]
[359968741,1746454249455,-450.0,0.00019864,2]
[359968743,1746454249465,-450.0,0.00019864,2]
[359968745,1746454249475,-450.0,0.00019864,2]
[359968746,1746454249485,-450.0,0.00019864,2]
[359968748,1746454249495,-450.0,0.00019864,2]
[359968750,1746454249504,-450.0,0.00019864,2]
[359968753,1746454249514,-450.0,0.00019864,2]
[359968754,1746454249524,-450.0,0.00019864,2]
[359968756,1746454249533,-450.0,0.00019864,2]
[359968758,1746454249542,-450.0,0.00019864,2]
[359968760,1746454249552,-450.0,0.00019864,2]
[359968762,1746454249561,-468.47803953,0.00019864,2]
[359968765,1746454249572,-450.0,0.00019864,2]
[359968766,1746454249581,-506.1079232,0.00019864,2]
[359968768,1746454249595,-503.14406159,0.00019864,2]
[359968771,1746454249605,-450.0,0.00019864,2]
[359968772,1746454249615,-450.0,0.00019864,2]
[359968774,1746454249624,-450.0,0.00019864,2]
[359968777,1746454249634,-450.0,0.00019864,2]
[359968779,1746454249644,-450.0,0.00019864,2]
[359968780,1746454249653,-560.43503776,0.00019864,2]
[359968783,1746454249662,-450.0,0.00019864,2]
[359968785,1746454249673,-450.0,0.00019864,2]
[359968786,1746454249683,-203.9857217,0.00019864,2]
[359968789,1746454249692,-450.0,0.00019864,2]
[359968791,1746454249704,-450.0,0.00019864,2]
[359968792,1746454249713,-450.0,0.00019864,2]
[359968795,1746454249723,-462.12054907,0.00019864,2]
[359968797,1746454249733,-450.0,0.00019864,2]
[359968798,1746454249742,-463.08530949,0.00019864,2]
[359968801,1746454249752,-450.0,0.00019864,2]
[359968803,1746454249761,-450.0,0.00019864,2]
[359968805,1746454249771,-475.54842737,0.00019864,2]
[359968806,1746454249780,-450.0,0.00019864,2]
[359968809,1746454249790,-450.0,0.00019864,2]
[359968811,1746454249799,-450.0,0.00019864,2]
[359968812,1746454249809,-494.0564744,0.00019864,2]
[359968815,1746454249819,-450.0,0.00019864,2]
[359968816,1746454249828,-450.0,0.00019864,2]
[359968818,1746454249838,-450.0,0.00019864,2]
[359968820,1746454249847,-517.54027635,0.00019864,2]
[359968822,1746454249856,-589.73683031,0.00019864,2]
[359968824,1746454249865,-450.0,0.00019864,2]
[359968826,1746454249875,-450.0,0.00019864,2]
[359968828,1746454249884,-490.0,0.00019864,2]
[359968830,1746454249894,-450.0,0.00019864,2]
[359968832,1746454249904,-531.49299216,0.00019864,2]
[359968835,1746454249914,-450.0,0.00019864,2]
[359968837,1746454249924,-450.0,0.00019864,2]
[359968839,1746454249934,-450.0,0.00019864,2]
[359968841,1746454249943,-450.0,0.00019864,2]
[359968843,1746454249955,-467.42882723,0.00019864,2]
[359968845,1746454249964,-450.0,0.00019864,2]
[359968847,1746454249972,-450.0,0.00019864,2]
[359968849,1746454249982,-450.0,0.00019864,2]
[359968851,1746454249992,-450.0,0.00019864,2]
[359968853,1746454250001,-490.0,0.00019864,2]
[359968855,1746454250010,-450.0,0.00019864,2]
[359968857,1746454250019,-450.0,0.00019864,2]
[359968859,1746454250029,-450.0,0.00019864,2]
[359968861,1746454250038,-450.0,0.00019864,2]
[359968863,1746454250047,-450.0,0.00019864,2]
[359968865,1746454250057,-450.0,0.00019864,2]
[359968867,1746454250066,-364.33299829,0.00019864,2]
[359968869,1746454250075,-450.0,0.00019864,2]
[359968871,1746454250085,-519.249999,0.00019864,2]
[359968872,1746454250094,-450.0,0.00019864,2]
[359968873,1746454250103,-450.0,0.00019864,2]
[359968874,1746454250112,-450.0,0.00019864,2]
[359968875,1746454250121,-450.0,0.00019864,2]
[359968876,1746454250130,-66.9532599,0.00019864,2]
[359968879,1746454250179,-383.0467401,0.00019864,2]
[359968881,1746454250195,-560.47449631,0.00019864,2]